Cogmind - Beta 13 @@@ ROGUE MODE // 2024.05.31 @ 07:32:38 Player: Blade Result: Destroyed by L-41 Fighter with Axe Performance ------------- Evolutions (3) 1500 Regions Visited (4) 800 Robots Destroyed (29) 145 Value Destroyed (899) 899 Prototype IDs (0) 0 Alien Tech Used (0) 0 Bonus (211) 211 TOTAL SCORE: 3555 Bonus ------- Pacifist 200 High Alert Combat Kills 11 Cogmind --------- Core Integrity 0/700 Matter 14/300 Energy 79/100 System Corruption 2% Temperature Cool (0) Movement Treading (145) Location -7/Factory Parts ------- > --- POWER (1) -------- (None) > --- PROPULSION (4) --- Advanced Treads > --- UTILITY (4) ------ Medium Storage Unit Advanced Visual Processing Unit > --- WEAPON (4) ------- (None) > --- INVENTORY (10) --- Light Ion Engine Light Nuclear Core Small Storage Unit Improved Terrain Scanner Weapon Cycler Improved Transmission Jammer Peak State ------------ > --- POWER ------------ Improved Deuterium Engine > --- PROPULSION ------- Carbon-fiber Leg Carbon-fiber Leg VSS Leg Improved Titanium Leg > --- UTILITY ---------- Medium Storage Unit Advanced Visual Processing Unit Improved Signal Interpreter Improved Transmission Jammer > --- WEAPON ----------- Minigun Minigun Grenade Launcher > --- INVENTORY -------- Light Ion Engine Light Nuclear Core Improved Treads Improved Treads Aluminum Leg Aluminum Leg Small Storage Unit Improved Terrain Scanner Kinecellerator Weapon Cycler [Rating: 39] Favorites ----------- Power Improved Deuterium Engine Engine Improved Deuterium Engine Power Core Light Nuclear Core Propulsion Carbon-fiber Leg Treads Improved Treads Leg Carbon-fiber Leg Utility Improved Signal Interpreter Device Improved Transmission Jammer Storage Small Storage Unit Processor Improved Signal Interpreter Protection Hardened Medium Armor Plating Weapon Minigun Energy Gun Lightning Gun Ballistic Gun Minigun Launcher Grenade Launcher Build | -11 -10 -9 -8 -7 ------- Run | Yrd Mat Mat Mat Fac Slots Evolved 6 | . . 2 2 2 Power . | . . . . . Propulsion 2 | . . . . 2 Utility 2 | . . . 2 . Weapon 2 | . . 2 . . Parts Attached 41 | . . 8 8 25 Power 3 | . . 1 . 2 Engine 2 | . . 1 . 1 Core 1 | . . . . 1 Reactor . | . . . . . Propulsion 18 | . . 4 2 12 Treads 4 | . . . . 4 Leg 14 | . . 4 2 8 Wheel . | . . . . . Hover . | . . . . . Flight . | . . . . . Utility 13 | . . 1 3 9 Device 5 | . . . 1 4 Storage 1 | . . . . 1 Processor 5 | . . 1 1 3 Hackware . | . . . . . Protection 2 | . . . 1 1 Artifact . | . . . . . Weapon 7 | . . 2 3 2 Energy Gun 1 | . . . . 1 Energy Cannon . | . . . . . Ballistic Gun 5 | . . 1 3 1 Ballistic Cannon . | . . . . . Launcher 1 | . . 1 . . Special Weapon . | . . . . . Impact Weapon . | . . . . . Slashing Weapon . | . . . . . Piercing Weapon . | . . . . . Special Melee Weapon . | . . . . . Unidentified Prototypes . | . . . . . Parts Lost 12 | . . . . 12 Power 1 | . . . . 1 Propulsion 5 | . . . . 5 Utility 1 | . . . . 1 Weapon 5 | . . . . 5 Highest Loss Streak 10 | . . . . 10 To Critical Strikes . | . . . . . Average Slot Usage (%) 90 | . 85 90 90 90 Engine 7 | . 14 11 9 5 Leg 26 | . 28 22 18 28 Device 4 | . . . 8 5 Storage 8 | . 14 11 9 7 Processor 12 | . . 4 9 14 Protection 1 | . . . 1 1 Ballistic Gun 20 | . 28 32 27 16 Launcher 6 | . . 9 9 6 Naked Turns . | . . . . . Heaviest Build 34 | 12 12 17 31 34 Greatest Support 62 | 20 20 20 27 62 Greatest Overweight (x) 4 | . . . 1 4 Average Overweight (x) . | . . . . . Largest Inventory Capacity 10 | 8 8 8 8 10 Average Capacity 8 | 8 8 8 8 9 Most Carried 10 | 6 7 8 8 10 Average Carried 8 | 6 6 7 7 8 Final Capacity 10 | 8 8 8 8 10 Final Carried 8 | 6 7 8 8 6 Class Distribution -------------------- 39% | Skirmisher 22% | Tank 14% | Mutant 11% | Gunner 6% | Scavenger-Tank 5% | Scavenger-Skirmisher Dominant Class ---------------- Mutant | -10/Materials Gunner | -9/Materials Tank | -8/Materials Skirmisher | -7/Factory Resources | -11 -10 -9 -8 -7 ----------- Run | Yrd Mat Mat Mat Fac Matter Collected 747 | 200 . 179 . 368 Remotely . | . . . . . Salvage Created 1104 | . . 731 . 373 Parts 63 | . . 39 . 24 Haulers Intercepted . | . . . . . Recyclers Shooed 1 | . . 1 . . Parts Field Recycled . | . . . . . Retrieved Matter . | . . . . . Parts Self-Destructed . | . . . . . Prevented . | . . . . . Kills | -11 -10 -9 -8 -7 ------- Run | Yrd Mat Mat Mat Fac Combat Hostiles Destroyed 21 | . . 13 . 8 Guns 11 | . . 6 . 5 AOE 10 | . . 7 . 3 Classes Destroyed 7 | . . 5 . 2 Tunneler 1 | . . . . 1 Recycler 4 | . . 3 . 1 Watcher 3 | . . 3 . . Swarmer 5 | . . 2 . 3 Grunt 12 | . . 10 . 2 Sentry 2 | . . 1 . 1 Programmer 2 | . . . . 2 Best Kill Streak 7 | . . 7 . 4 Combat Bots Only 6 | . . 6 . 3 Max Kills in Single Turn 3 | . . 3 . 3 Gunslinging . | . . . . . Exploded 3 | . . 3 . 2 Melee . | . . . . . Uniques/NPCs Destroyed . | . . . . . Combat | -11 -10 -9 -8 -7 -------- Run | Yrd Mat Mat Mat Fac Hostile Shots Fired 249 | . 20 27 . 202 Missed 96 | . 3 15 . 78 Damage Taken 2704 | . 192 203 . 2309 Core 812 | . . 84 . 728 Absorbed by Shields . | . . . . . Core Remaining (%) 94 | 100 100 79 100 . Volleys Fired 54 | . . 27 5 22 Largest 4 | . . 4 3 3 Hottest 90 | . . 90 63 80 Shots Fired 153 | . . 90 15 48 Gun 139 | . . 81 15 43 Cannon . | . . . . . Launcher 14 | . . 9 . 5 Special . | . . . . . Kinetic 139 | . . 81 15 43 Thermal . | . . . . . Explosive 14 | . . 9 . 5 Electromagnetic . | . . . . . Robot Hit Streak 10 | . . 8 2 10 Robot Miss Streak 8 | . . 8 4 3 Penetration Max . | . . . . . Secondary Targets 2 | . . 2 . . Max Gunslinging Chain 1 | . . 1 . . Shots Hit Robots 80 | . . 51 6 23 Core Hits 66 | . . 42 3 21 Critical Kills 1 | . . 1 . . Critical Parts Destroyed . | . . . . . Critical Strikes 1 | . . 1 . . Destroy 1 | . . 1 . . Melee Attacks . | . . . . . Impact . | . . . . . Slashing . | . . . . . Piercing . | . . . . . Sneak Attacks . | . . . . . Combat Hostiles . | . . . . . Follow-up Attacks . | . . . . . Damage Inflicted 1806 | . 13 916 67 810 Guns 1009 | . . 546 59 404 Cannons . | . . . . . Explosions 683 | . . 370 . 313 Melee . | . . . . . Ramming 114 | . 13 . 8 93 Kinetic 1009 | . . 546 59 404 Thermal 96 | . . . . 96 Explosive 587 | . . 370 . 217 Electromagnetic . | . . . . . Impact . | . . . . . Slashing . | . . . . . Piercing . | . . . . . Highest Corruption 2 | . . . . 2 Average Corruption 2 | . . . . 2 Corruption Purged . | . . . . . Corruption Blocked . | . . . . . Effects 18 | . . . . 18 Message Errors 5 | . . . . 5 Matter Fused 7 | . . . . 7 Heat Flow Errors 1 | . . . . 1 Energy Discharges 2 | . . . . 2 Data Loss (minor) 1 | . . . . 1 Misfires 1 | . . . . 1 Alerts 1 | . . . . 1 Overload Shots . | . . . . . Overflow Damage 6 | . . . . 6 Projectiles . | . . . . . Explosions 6 | . . . . 6 Melee . | . . . . . Knockbacks 1 | . . . . 1 Impact 1 | . . . . 1 Kinetic . | . . . . . Secondary . | . . . . . Self-Inflicted Damage 170 | . . 76 . 94 Shots 5 | . . 3 . 2 Rammed 1 | . . . . 1 Targets Rammed 20 | . 7 . 1 12 Kicked 19 | . 7 . 1 11 Crushed . | . . . . . Highest Temperature 125 | . . 117 8 125 Average Temperature 25 | . . 26 6 24 Received Heat Transfer 759 | . 102 54 . 603 Siege Activations . | . . . . . Robots Corrupted . | . . . . . Combat Hostiles . | . . . . . Parts Fried . | . . . . . Impact Corruptions . | . . . . . Robots Melted . | . . . . . Combat Hostiles . | . . . . . Parts Melted . | . . . . . Heat Transferred 50 | . . . . 50 Parts Sabotaged . | . . . . . Parts Stolen . | . . . . . Parts Stripped . | . . . . . Power Chain Reactions . | . . . . . Alert | -11 -10 -9 -8 -7 ------- Run | Yrd Mat Mat Mat Fac Peak Influence 424 | . 15 424 175 172 Initial 121 | . . 5 121 79 Average 106 | . 3 206 152 85 Maximum Alert Level 2 | . . 2 . . Low Security (%) 93 | 100 100 42 100 100 Level 1 6 | . . 52 . . Level 2 . | . . 6 . . Level 3 . | . . . . . Level 4 . | . . . . . Level 5 . | . . . . . High Security . | . . . . . Max Security . | . . . . . Squads Dispatched 8 | . 2 2 . 4 Investigation 2 | . 1 1 . . Extermination 3 | . . . . 3 Reinforcement 3 | . 1 1 . 1 Assault . | . . . . . Garrison . | . . . . . Intercept . | . . . . . Searches Triggered . | . . . . . Construction Impeded 1 | . . . . 1 Haulers Reinforced . | . . . . . Active Scanning Responses . | . . . . . Cargo Convoy Interrupts . | . . . . . Stealth | -11 -10 -9 -8 -7 --------- Run | Yrd Mat Mat Mat Fac Distress Signals 1 | . . 1 . . Communications Jammed . | . . . . . Distress Signals . | . . . . . Times Spotted 50 | . 4 21 3 22 Peak Tracking Total 9 | . 3 4 1 9 Tactical Retreats 1 | . . . . 1 Traps | -11 -10 -9 -8 -7 ------- Run | Yrd Mat Mat Mat Fac Traps Triggered 3 | . 1 . . 2 Indirectly . | . . . . . Trap Hack Attempts . | . . . . . Triggered . | . . . . . Disarmed . | . . . . . Reprogrammed . | . . . . . Reused . | . . . . . Traps Extracted . | . . . . . Installed . | . . . . . Triggered . | . . . . . Machines | -11 -10 -9 -8 -7 ---------- Run | Yrd Mat Mat Mat Fac Machines Disabled 4 | . . . . 4 Max in Single Turn 2 | . . . . 2 Machines Repaired . | . . . . . Machines Dismantled . | . . . . . Machines Sabotaged . | . . . . . Overloaded Fab Kills . | . . . . . Hacking | -11 -10 -9 -8 -7 --------- Run | Yrd Mat Mat Mat Fac Machines Accessed 10 | . 1 3 3 3 Terminals 9 | . 1 3 3 2 Fabricators 1 | . . . . 1 Repair Stations . | . . . . . Recycling Units . | . . . . . Scanalyzers . | . . . . . Garrison Access . | . . . . . Total Hacks 21 | . 2 6 6 7 Successful 11 | . 1 4 3 3 Failed 10 | . 1 2 3 4 Catastrophic 2 | . . . 1 1 Database Lockouts . | . . . . . Manual 18 | . 2 5 6 5 Terminals 19 | . 2 6 6 5 Fabricators 2 | . . . . 2 Repair Stations . | . . . . . Recycling Units . | . . . . . Scanalyzers . | . . . . . Garrison Access . | . . . . . Terminal Hacks 2 | . . 2 . . Level Access Points 1 | . . 1 . . Unreport Threat 1 | . . 1 . . Fabricator Hacks 1 | . . . . 1 Build 1 | . . . . 1 Repair Station Hacks . | . . . . . Recycling Unit Hacks . | . . . . . Scanalyzer . | . . . . . Garrison Access Hacks . | . . . . . Unauthorized Hacks 8 | . 1 2 3 2 Terminals 8 | . 1 2 3 2 Botnet 8 | . 1 2 3 2 Fabricators . | . . . . . Repair Stations . | . . . . . Recycling Units . | . . . . . Scanalyzers . | . . . . . Garrison Access . | . . . . . Data Cores Recovered . | . . . . . Used . | . . . . . Hacking Detections 6 | . 1 1 2 2 Full Trace Events 1 | . . 1 . . Feedback Events . | . . . . . Feedback Blocked . | . . . . . Robot Schematics Acquired . | . . . . . Robots Built . | . . . . . Authchips . | . . . . . Time . | . . . . . Total Robot Build Rating . | . . . . . Part Schematics Acquired . | . . . . . Parts Built 1 | . . . . 1 Authchips . | . . . . . Time 106 | . . . . 106 Total Part Build Rating 6 | . . . . 6 Parts Repaired . | . . . . . Time . | . . . . . Parts Recycled . | . . . . . Recycled Matter . | . . . . . Retrieved Matter . | . . . . . Retrieved Components . | . . . . . Parts Scanalyzed . | . . . . . Part Schematics Acquired . | . . . . . Parts Damaged . | . . . . . Bothacking | -11 -10 -9 -8 -7 ------------ Run | Yrd Mat Mat Mat Fac Used RIF Installer . | . . . . . Robots Hacked . | . . . . . Non-combat . | . . . . . Combat . | . . . . . Robot Hacks Applied . | . . . . . Relay Couplers Released . | . . . . . Fabnet Peak Effective % . | . . . . . Robots Rewired . | . . . . . Allies Hacked . | . . . . . Hacks Repelled . | . . . . . Allies | -11 -10 -9 -8 -7 -------- Run | Yrd Mat Mat Mat Fac Total Allies . | . . . . . Largest Group . | . . . . . Highest-Rated Group . | . . . . . Highest-Rated Ally . | . . . . . Total Orders . | . . . . . Ally Attacks . | . . . . . Total Damage . | . . . . . Kills . | . . . . . Allies Corrupted . | . . . . . Allies Melted . | . . . . . Intel | -11 -10 -9 -8 -7 ------- Run | Yrd Mat Mat Mat Fac Robot Analysis Total . | . . . . . Derelict Logs Recovered . | . . . . . Drone Launches . | . . . . . Drone Recoveries . | . . . . . Exploration | -11 -10 -9 -8 -7 ------------- Run | Yrd Mat Mat Mat Fac Turns Passed 2553 | 2 103 300 369 1779 Spaces Moved 1620 | 2 79 162 202 1175 Core 21 | . . . . 21 Treads 9 | . . . . 9 Legs 1590 | 2 79 162 202 1145 Wheels . | . . . . . Hover . | . . . . . Flight . | . . . . . Fastest Speed 105 | 120 120 120 105 110 Average Speed 123 | 120 120 120 139 121 Slowest Speed 250 | 120 120 120 185 250 Overloaded Moves . | . . . . . Propulsion Burnouts . | . . . . . Robots Hopped . | . . . . . Cave-ins Triggered . | . . . . . Exploration Rate (%) 18 | 2 23 17 19 31 Regions Visited 4 Branch Regions . Pre-discovered Areas . | . . . . . Known Exits Taken 2 | . . 1 1 . Unknown Exits Taken 2 | 1 1 . . . Scrap Searched . | . . . . . Spaces Dug . | . . . . . Terrain Destroyed 85 | . . 50 . 35 Melee . | . . . . . Projectile . | . . . . . AOE 85 | . . 50 . 35 Terrain Rammed . | . . . . . Walls Destroyed . | . . . . . Machines Disabled . | . . . . . Actions | -11 -10 -9 -8 -7 --------- Run | Yrd Mat Mat Mat Fac Total 2074 | 1 86 217 281 1489 Wait 313 | . . 13 59 241 Move 1616 | 1 78 161 201 1175 Hop . | . . . . . Pick Up 9 | . 1 3 1 4 Fast Attach 9 | . . 1 2 6 Attach 8 | . . 2 . 6 Detach . | . . . . . Swap 24 | . . 5 6 13 Drop 21 | . . 5 6 10 Fire 54 | . . 27 5 22 Melee . | . . . . . Ram . | . . . . . Kick 19 | . 7 . 1 11 Crush 1 | . . . . 1 Escape Stasis . | . . . . . Rewire . | . . . . . Trap . | . . . . . Miscellaneous . | . . . . . Route ------- -11/Scrapyard -10/Materials (discovered 2 exits: *Mat / [*Min]) -9/Materials (discovered 3 exits: *Mat x3) -8/Materials -7/Factory History --------- Turn | Location | Event 1 | -11/Scrapyard | Discovered new exit (range 1) 3 | -11/Scrapyard | Entered Materials 63 | -10/Materials | Discovered new exit (range 6) 72 | -10/Materials | Discovered new exit (range 15) 106 | -10/Materials | Entered another Materials area 106 | -9/Materials | Evolved 2 slots: Weapon x2 349 | -9/Materials | Identified exit to Materials 406 | -9/Materials | Entered another Materials area 406 | -8/Materials | Evolved 2 slots: Utility x2 753 | -8/Materials | Discovered new exit (range 8) 774 | -8/Materials | Identified exit to Factory 775 | -8/Materials | Entered Factory 775 | -7/Factory | Evolved 2 slots: Propulsion x2 905 | -7/Factory | Build established: Tank 1176 | -7/Factory | Fabricated Imp. Transmission Jammer (x1) 1469 | -7/Factory | Build established: Skirmisher 2525 | -7/Factory | Core integrity fell below 50% 2540 | -7/Factory | Lost 10 parts (1p5n1u3w) 2542 | -7/Factory | Core integrity fell below 20% 2554 | -7/Factory | Destroyed by L-41 Fighter with Axe Last Messages --------------- report to Factory Zone 1S. 02525_ K-01 Serf collects debris. 02526_ Critical hit (Burn: +37). 02528_ R-06 Scavenger collects Carbon-fiber Leg. 02534_ R-06 Scavenger collects Gauss Rifle. 02535_ System corrupted: IFF burst signal emitted. 02538_ R-06 Scavenger collects Lgt. Nuclear Core. 02539_ K-01 Serf suffers critical hit (Burn). 02539_ K-01 Serf destroyed. 02541_ K-01 Serf collects debris. 02546_ M-13 Machinist repairs G-47 Trooper. 02547_ K-01 Serf collects debris. 02547_ R-06 Scavenger collects Lgt. Ion Engine. 02548_ K-01 Serf collects debris. 02550_ P-60 Hacker resets R-06 Scavenger, system corruption cleaned. 02551_ Imp. Treads severed. 02552_ K-01 Serf collects debris. Map ----- +----------------------------------------------------+ | + # #???????????????????? | | ###### """ # #???????????????????? | | #????# """ # #???????????????????? | | #????# """ ! + #???????????????????? | | #####+####????# # #???????????????????? | | ??????????????#! """ # #???????????????????? | | ??????????????# """ #% #???????????????????? | | ??????????????# """ # #???????????????????? | | ??????????????# = # r #???????????????????? | | ??????????????########## # #??????? | | ???????????????????????# m + #??????? | | ???????????????????????#k # #??????? | | ???????????????????????# k # #??????? | | ???????????????????????#p = #?############??????? | | ???????????????????????# g!#???????????????????? | | ???????????????????????#g g= #???????????????????? | | ???????????????????????# #???????????????????? | | ???????????????????????# #???????????????????? | | ???????????????????????# g #???????????????????? | | ???????????????????????# g #???????????????????? | | ???????????????????????# #####+#########?????? | | ???????????????????????# ????? | | ???????????????????????# ????? | | ???????????????????????+ l ????? | | ???????????????????????# l ????? | | ???????????????????????# @ ????? | | ???????????????????????# ###############?????? | | ???????????????????????#^^ #???????????????????? | | ???????????????????????# #???????????????????? | | ???????????????????????# +???????????????????? | | ???????????????????????# #???????????????????? | | ???????????????????????# #???????????????????? | | ???????????????????????# #???????????????????? | | ???????????????????????# #???????????????????? | | ???????????????????????# #???????????????????? | | ??????????????????????? #???????????????????? | | ??????????????????????? #???????????????????? | | ??????????????????????? #???????????????????? | | ??????????????????????? #???????????????????? | | ??????????????????????? #???????????????????? | | ???????????????????????###+###???????????????????? | | ?????????????????????????????????????????????????? | | ?????????????????????????????????????????????????? | | ?????????????????????????????????????????????????? | | ?????????????????????????????????????????????????? | | ?????????????????????????????????????????????????? | | ?????????????????????????????????????????????????? | | ?????????????????????????????????????????????????? | | ?????????????????????????????????????????????????? | | ?????????????????????????????????????????????????? | +----------------------------------------------------+ Best States ------------- Heat Dissipation 34 Energy Generation 16 Energy Capacity 290 Matter Stores 300 Matter Capacity 300 Sight Range 20 Terrain Scan Density 10 Jamming Range 14 Armor Coverage 225 Evasion (%) 59 Recoil Reduction 2 Kinecelleration 30 Item Schematics ----------------- None Robot Schematics ------------------ None Fabricated ------------ Imp. Transmission Jammer | x1 | -7/Factory | Preloaded Alien Tech Used ----------------- None Achievements -------------- None Challenges ------------ None Game ------ Seed CooledChargeSteel Manual? 0 Play Time 00:23:34 Cumulative 67.6 hours Start 2024.05.31 @ 07:09:13 End 2024.05.31 @ 07:32:38 Sessions 1 Manual Loads 0 Difficulty Rogue Special Mode None Game No. 92 Rogue 8 Adventurer 79 Explorer 5 Win Type - Total 2 Types 2/0/0/0/0/0/0/0/0 Lore% 34 Gallery% 49 Achievement% 37 Wizard Run 0 Options --------- Layout 1 ASCII 0 Keyboard 0 Movement Arrows Keybinds 0 Fullscreen 2 Font 24/Smallcaps Map View 50x35 Zoom Use 0% Tactical HUD 1 Map Filters NONE Filters NONE Steam 1 RUN: 4c846ae5-7c2b-4588-9e64-ec7862341664